bitfinex-derivatives/quotes_SOLF0:USTF0_20250730
["timestamp","ask_amount","ask_price","bid_price","bid_amount"]
[1753878932703,3.21,177.24,177.21,3.17686]
[1753878933107,3.21,177.26,177.25,5.6419]
[1753878933709,3.21,177.3,177.21,3.17686]
[1753878933906,3.21,177.26,177.21,3.17686]
[1753878934103,5.6419,177.26,177.21,8.81996]
[1753878934300,3.21,177.25,177.21,8.81996]
[1753878934907,3.21,177.24,177.21,3.17686]
[1753878935298,5.6413,177.28,177.21,3.17686]
[1753878935503,3.21,177.27,177.21,7.79369963]
[1753878935900,3.21,177.27,177.26,5.6417]
[1753878936110,3.21,177.27,177.21,7.79369963]
[1753878936111,3.21,177.3,177.23,4.61683963]
[1753878936309,9.30650107,177.34,177.21,3.17686]
[1753878936310,3.21,177.33,177.21,3.17686]
[1753878936603,3.21,177.29,177.21,3.17686]
[1753878936799,4.61683963,177.28,177.21,3.17686]
[1753878937003,3.21,177.27,177.21,3.17686]
[1753878938506,3.21,177.25,177.21,3.17686]
[1753878938707,4.61683963,177.32,177.21,3.17686]
[1753878938708,3.21,177.23,177.21,3.17686]
[1753878938907,3.21,177.21,177.16,107.56]
[1753878939215,3.21,177.21,177.15,7.0]
[1753878939509,4.68966144,177.3,177.16,3.09]
[1753878939807,3.21,177.25,177.16,3.09]
[1753878940010,3.21,177.23,177.16,3.09]
[1753878940212,3.21,177.21,177.15,7.0]
[1753878940415,5.6438,177.2,177.16,5.6447]
[1753878940612,3.21,177.19,177.15,7.0]
[1753878940814,3.21,177.17,177.15,7.0]
[1753878941011,3.21,177.16,177.15,7.0]
[1753878944916,8.8549,177.16,177.15,7.0]
[1753878945614,13.47173963,177.16,177.15,7.0]
[1753878946027,13.47173963,177.16,177.08,3.09]
[1753878946028,4.61683963,177.16,177.08,3.09]
[1753878946227,3.21,177.14,177.08,3.09]
[1753878947124,3.21,177.16,177.08,4.61683963]
[1753878947324,3.21,177.14,177.09,3.09]
[1753878947524,3.21,177.1,177.05,3.09]
[1753878947730,3.21,177.08,177.05,8.7383]
[1753878948027,3.21,177.08,177.01,3.09]
[1753878948233,5.6478,177.07,177.03,5.6488]
[1753878948525,3.21,177.08,177.02,3.09]
[1753878948733,8.8577,177.08,177.05,5.6483]
[1753878949026,3.21,177.08,177.0,3.09]
[1753878949524,3.21,177.08,177.01,3.09]
[1753878950125,5.6477,177.08,177.04,5.6484]
[1753878950332,3.21,177.06,177.04,8.7384]
[1753878950532,3.21,177.06,177.04,3.09]
[1753878950737,7.82683963,177.11,177.02,3.09]
[1753878951128,3.21,177.11,177.07,5.6477]
[1753878951430,3.21,177.09,177.03,4.61683963]
[1753878951730,3.21,177.1,177.04,3.09]
[1753878951930,3.21,177.08,177.04,3.09]
[1753878952138,3.21,177.08,177.02,3.09]
[1753878952434,5.6481,177.06,177.02,3.09]
[1753878952634,3.21,177.05,177.02,3.09]
[1753878952826,3.21,177.05,177.0,107.6]
[1753878953030,3.21,177.05,177.01,3.09]
[1753878953336,3.21,177.06,177.0,110.69]
[1753878953630,4.61683963,177.07,177.01,3.09]
[1753878953836,3.21,177.08,177.01,3.09]
[1753878954228,3.21,177.08,177.0,107.6]
[1753878954229,7.82683963,177.09,177.0,107.6]
[1753878954428,7.82683963,177.09,177.01,3.09]
[1753878954632,8.8564,177.12,177.03,3.09]
[1753878954830,8.8564,177.12,177.05,3.09]
[1753878955241,3.21,177.12,177.05,3.09]
[1753878955738,4.61683963,177.11,177.05,3.09]
[1753878956031,3.21,177.1,177.05,8.7382]
[1753878956235,3.21,177.1,177.0,107.6]
[1753878956432,5.6479,177.07,177.04,5.6486]
[1753878956632,3.21,177.06,177.04,8.7386]
[1753878956942,3.21,177.16,177.01,3.09]
[1753878957235,28.1998,177.17,177.0,112.21683963]
[1753878957236,4.61683963,177.1,177.0,112.21683963]
[1753878957431,3.03,177.11,177.03,3.29]
[1753878958936,3.03,177.11,177.02,4.61683963]
[1753878959233,3.03,177.11,177.05,3.29]
[1753878959440,5.6465,177.11,177.07,5.6475]
[1753878959640,3.03,177.09,177.03,3.29]
[1753878959839,4.61683963,177.08,177.03,3.29]
[1753878960038,3.03,177.06,177.03,3.29]
[1753878960237,3.03,177.06,177.01,3.29]
[1753878960639,3.03,177.04,177.02,3.29]
[1753878960854,3.03,177.07,177.0,110.89]
[1753878961137,3.03,176.99,176.97,3.29]
[1753878961331,3.03,176.97,176.92,112.21683963]
[1753878961538,4.61683963,177.1,176.92,107.6]
[1753878961539,3.03,176.95,176.92,107.6]
[1753878961734,4.61683963,177.0,176.92,110.89]
[1753878961735,3.03,176.97,176.92,110.89]
[1753878961939,3.03,176.97,176.94,3.29]
[1753878962236,3.03,177.0,176.97,8.9407]
[1753878962445,3.03,177.03,176.97,3.29]
[1753878962643,4.61683963,177.06,176.99,3.29]
[1753878962842,3.03,177.01,176.99,8.9402]
[1753878963047,4.61683963,177.06,176.97,3.29]
[1753878963245,3.03,177.0,176.98,3.29]
[1753878963741,4.61683963,177.04,176.94,4.61683963]
[1753878964037,3.03,177.03,176.96,4.61683963]
[1753878964237,3.03,177.03,176.97,3.29]
[1753878964444,7.64683963,177.06,176.97,3.29]
[1753878964648,3.03,177.07,176.99,3.29]
[1753878964838,3.03,177.06,176.99,3.29]
[1753878965451,3.03,177.07,177.02,8.9391]
[1753878965639,3.03,177.07,176.99,3.29]
[1753878965840,3.03,177.07,177.0,4.61683963]
[1753878966138,3.03,177.1,177.03,3.29]
[1753878966343,3.03,177.1,177.08,5.6473]
[1753878966540,3.03,177.1,177.08,3.29]
[1753878966749,3.03,177.13,177.1,3.29]
[1753878967046,4.61683963,177.14,177.04,4.61683963]
[1753878967244,3.03,177.13,177.05,3.29]
[1753878967541,3.03,177.11,177.03,3.29]
[1753878967745,3.03,177.11,177.02,112.21683963]
[1753878967950,5.6479,177.07,177.04,5.6486]
[1753878968147,3.03,177.09,177.02,110.89]
[1753878968746,3.03,177.09,177.03,3.29]
[1753878969749,3.03,177.09,177.06,5.6479]
[1753878970047,3.03,177.11,177.02,115.50683963]
[1753878970244,3.03,177.09,177.02,110.89]
[1753878970446,3.03,177.07,177.05,3.29]
[1753878970648,4.61683963,177.1,177.02,107.6]
[1753878970947,3.03,177.06,177.03,3.29]
[1753878973145,3.03,177.06,177.05,5.6484]
[1753878973947,3.03,177.06,177.04,5.6486]
[1753878974144,3.03,177.06,177.03,3.29]
[1753878974339,3.03,177.09,177.03,3.29]
[1753878974746,3.03,177.09,177.04,4.61683963]
[1753878974951,3.03,177.09,177.08,5.6474]
[1753878975852,4.61683963,177.14,177.09,5.6471]
[1753878976040,5.6463,177.12,177.07,3.29]
[1753878976248,3.03,177.13,177.02,107.6]
[1753878976452,3.03,177.11,177.03,3.29]
[1753878976648,4.61683963,177.1,177.03,3.29]
[1753878976841,4.61683963,177.1,177.05,5.6482]
[1753878977040,5.648,177.07,177.03,3.29]
[1753878977248,4.61683963,177.1,177.03,3.29]
[1753878977450,4.23506753,177.09,177.03,3.29]
[1753878977750,5.6476,177.08,177.03,3.29]
[1753878977946,4.61683963,177.1,177.03,3.29]
[1753878978147,4.23524243,177.09,177.03,3.29]
[1753878978351,4.23524243,177.08,177.03,3.29]
[1753878978655,4.61683963,177.1,177.05,5.6482]
[1753878978853,3.03,177.11,177.03,3.29]
[1753878979148,4.23734696,177.1,177.03,3.29]
[1753878979352,4.23734696,177.09,177.03,3.29]
[1753878979547,3.03,177.11,177.03,3.29]
[1753878979854,3.03,177.09,177.03,3.29]
[1753878981348,3.03,177.09,177.05,5.6482]
[1753878981549,3.03,177.07,177.02,107.6]
[1753878981947,8.678,177.07,177.04,5.6485]
[1753878982149,3.03,177.07,177.02,107.6]
[1753878982855,8.86729552,177.06,177.01,3.29]
[1753878983154,10.26613963,177.02,177.01,3.29]
[1753878983354,14.51659552,177.02,177.01,3.29]
[1753878984155,5.651,176.97,176.93,5.652]
[1753878984357,4.61683963,177.0,176.92,107.56]
[1753878984557,4.24110009,176.99,176.92,107.56]
[1753878984760,4.61683963,177.0,176.92,107.56]
[1753878984963,4.24125135,176.99,176.92,107.56]
[1753878985161,4.61683963,177.0,176.92,107.56]
[1753878985462,3.03,176.97,176.92,107.56]
[1753878986263,3.03,176.97,176.93,3.29]
[1753878986954,3.03,176.97,176.91,86.23757983]
[1753878987154,3.3,176.96,176.91,5.6528]
[1753878987353,3.3,176.96,176.9,110.56]
[1753878987756,4.61683963,176.98,176.95,5.6516]
[1753878987955,8.9503,176.99,176.95,5.6516]
[1753878988263,4.24332905,176.98,176.95,5.6516]
[1753878988460,8.9503,176.99,176.95,5.6516]
[1753878988959,3.3,176.99,176.96,5.6512]
[1753878989261,3.3,176.99,176.91,3.0]
[1753878989262,3.3,176.99,176.91,7.61683963]
[1753878989655,3.3,176.99,176.95,4.61683963]
[1753878990157,3.3,176.99,176.98,5.6506]
[1753878990553,4.68966144,177.05,176.98,107.56]
[1753878990756,4.24564397,177.04,177.01,3.0]
[1753878990965,4.68966144,177.08,177.01,3.0]
[1753878991154,4.61683963,177.07,176.99,3.0]
[1753878991459,4.24552883,177.06,176.99,3.0]
[1753878991665,4.24552883,177.06,177.05,5.6484]
[1753878992256,4.24552883,177.06,177.01,3.0]
[1753878992463,4.61683963,177.09,177.01,3.0]
[1753878992655,4.24911986,177.08,177.01,3.0]
[1753878992862,13.19691986,177.07,177.04,3.0]
[1753878993057,7.54911986,177.06,176.99,3.0]
[1753878993257,3.3,177.03,177.0,3.0]
[1753878993459,7.91683963,177.05,176.97,3.0]
[1753878993763,8.9486,177.05,177.01,5.6495]
[1753878993956,3.3,177.03,176.97,3.0]
[1753878994156,7.91683963,177.03,176.97,3.0]
[1753878994360,5.65,177.0,176.98,3.0]
[1753878994662,3.3,177.0,176.93,3.0]
[1753878994856,4.61683963,176.97,176.92,3.0]
[1753878995058,4.61683963,176.97,176.89,3.0]
[1753878995455,3.3,176.98,176.9,3.0]
[1753878995656,7.91683963,177.01,176.92,3.0]
[1753878995858,4.24945587,177.0,176.92,3.0]
[1753878996061,5.6505,176.99,176.92,3.0]
[1753878996461,5.651,176.97,176.93,5.6521]
[1753878996661,3.3,176.96,176.87,4.61683963]
[1753878996861,3.3,176.96,176.88,3.0]
[1753878997256,3.3,176.96,176.92,3.0]
[1753878997562,3.3,176.94,176.92,3.0]
[1753878997758,3.3,176.96,176.87,107.54]
[1753878997962,3.3,176.96,176.93,3.0]
[1753878998164,4.61683963,176.97,176.93,3.0]
[1753878998364,3.3,176.95,176.93,3.0]
[1753878998764,8.9514,176.96,176.87,107.54]
[1753878998966,8.9514,176.96,176.94,3.0]
[1753878999261,5.6514,176.96,176.94,3.0]
[1753878999462,5.6516,176.95,176.89,3.0]
[1753878999762,3.3,176.96,176.89,3.0]
[1753878999960,7.91683963,176.99,176.94,3.0]
[1753879000156,3.3,177.0,176.94,3.0]
[1753879000359,3.3,176.98,176.92,5.6523]
[1753879000963,4.61683963,176.97,176.92,3.0]
[1753879001158,3.3,176.96,176.87,3.0]
[1753879001358,3.3,176.94,176.87,3.0]
[1753879002667,8.9527,176.92,176.89,3.0]
[1753879003061,3.3,176.92,176.9,3.0]
[1753879003463,3.3,176.91,176.88,3.0]
[1753879003767,3.3,176.92,176.87,3.0]
[1753879003966,4.61683963,176.93,176.87,3.0]
[1753879004164,3.3,176.92,176.87,3.0]
[1753879004364,3.3,176.92,176.86,7.0]
[1753879005072,3.3,176.92,176.86,10.0]
[1753879005270,3.3,176.92,176.87,5.6541]
[1753879005473,3.3,176.91,176.88,3.0]
[1753879005665,3.3,176.91,176.86,7.0]
[1753879005666,3.3,176.91,176.89,3.0]
[1753879005975,3.3,176.94,176.87,3.0]
[1753879006172,4.61683963,176.95,176.87,3.0]
[1753879006670,5.6527,176.92,176.88,5.6536]
[1753879006871,3.3,176.92,176.89,3.0]
[1753879007070,3.3,176.92,176.9,3.0]
[1753879007270,4.61683963,176.95,176.89,5.6533]
[1753879007572,7.91683963,176.95,176.87,3.0]
[1753879007760,3.3,176.94,176.89,3.0]
[1753879007968,3.3,176.92,176.86,10.0]
[1753879008371,3.3,176.9,176.88,3.0]
[1753879008770,3.3,176.89,176.86,12.6544]
[1753879008970,4.61683963,176.91,176.88,3.0]
[1753879009273,5.6539,176.88,176.86,10.0]
[1753879009474,8.9539,176.88,176.86,10.0]
[1753879010175,5.6541,176.87,176.86,7.0]
[1753879010378,13.57093963,176.87,176.86,7.0]
[1753879010771,3.3,176.87,176.86,7.0]
[1753879010974,5.6541,176.88,176.86,7.0]
[1753879011174,7.91683963,176.9,176.87,3.0]
[1753879011373,8.9541,176.87,176.86,7.0]
[1753879011970,3.3,176.83,176.81,3.0]
[1753879012174,4.61683963,176.85,176.78,3.0]
[1753879012370,3.3,176.83,176.78,3.0]
[1753879012872,8.9555,176.83,176.81,3.0]
[1753879013074,4.61683963,176.87,176.78,7.61683963]
[1753879013273,3.3,176.86,176.79,3.0]
[1753879013471,3.3,176.83,176.8,3.0]
[1753879013673,4.61683963,176.83,176.78,3.0]
[1753879013978,5.657,176.78,176.77,3.0]
[1753879014176,4.61683963,176.81,176.77,3.0]
[1753879014377,4.61683963,176.81,176.73,3.0]
[1753879015076,3.3,176.82,176.74,3.0]
[1753879015676,4.61683963,176.83,176.75,3.0]
[1753879015878,4.61683963,176.85,176.76,4.61683963]
[1753879016180,4.61683963,176.85,176.72,107.54]
[1753879016181,7.91683963,176.89,176.81,3.0]
[1753879016379,3.3,176.89,176.82,4.61683963]
[1753879016678,8.9535,176.89,176.86,5.6542]
[1753879016884,3.3,176.9,176.83,3.0]
[1753879017284,3.3,176.9,176.85,5.6545]
[1753879017490,3.06,176.89,176.85,3.29]
[1753879017687,4.61683963,176.89,176.82,5.6556]
[1753879017884,3.06,176.86,176.82,3.29]
[1753879018085,3.06,176.85,176.82,3.29]
[1753879018285,3.06,176.84,176.82,3.29]
[1753879018488,3.06,176.84,176.8,3.29]
[1753879018685,3.06,176.83,176.76,4.61683963]
[1753879018997,4.61683963,176.85,176.77,3.29]
[1753879019186,7.67683963,176.85,176.77,3.29]
[1753879019383,5.6555,176.83,176.77,3.29]
[1753879019696,4.61683963,176.89,176.79,3.29]
[1753879019882,5.6539,176.88,176.85,3.29]
[1753879020190,3.06,176.89,176.87,3.29]
[1753879020383,8.7136,176.89,176.85,5.6545]
[1753879020695,3.06,176.91,176.83,3.29]
[1753879021287,3.06,176.91,176.86,3.29]
[1753879021486,3.06,176.9,176.84,3.29]
[1753879021682,4.61683963,176.89,176.84,3.29]
[1753879021887,4.61683963,176.87,176.8,3.29]
[1753879022087,3.06,176.84,176.75,4.61683963]
[1753879022292,3.06,176.84,176.76,3.29]
[1753879022791,3.06,176.86,176.78,3.29]
[1753879022987,3.06,176.84,176.8,3.29]
[1753879023193,3.06,176.82,176.75,3.29]
[1753879023390,5.6564,176.8,176.76,5.6576]
[1753879023686,3.06,176.82,176.75,3.29]
[1753879023888,3.06,176.82,176.74,107.54]
[1753879023889,4.61683963,176.84,176.74,107.54]
[1753879024091,3.06,176.83,176.76,3.29]
[1753879024487,5.6559,176.82,176.76,3.29]
[1753879024684,5.6559,176.82,176.8,3.29]
[1753879024887,3.06,176.83,176.8,3.29]
[1753879025289,3.06,176.85,176.75,4.61683963]
[1753879025484,4.71308821,176.93,176.78,3.29]
[1753879025695,3.06,176.88,176.8,3.29]
[1753879025885,3.06,176.85,176.82,3.29]
[1753879026697,3.06,176.85,176.77,4.61683963]
[1753879026896,4.61683963,176.87,176.78,3.29]
[1753879027191,3.06,176.88,176.8,3.29]
[1753879027400,3.06,176.88,176.81,5.656]
[1753879027599,3.06,176.88,176.81,3.29]
[1753879027992,8.7138,176.88,176.83,5.6554]
[1753879028194,8.7138,176.88,176.85,3.29]
[1753879028492,3.06,176.88,176.85,3.29]
[1753879028697,5.6542,176.87,176.85,3.29]
[1753879029000,3.06,176.88,176.8,3.29]
[1753879029198,3.06,176.84,176.81,8.9458]
[1753879029394,3.06,176.84,176.81,3.29]
[1753879029592,5.6553,176.84,176.8,5.6563]
[1753879029792,4.61683963,176.88,176.8,3.29]
[1753879029997,7.67683963,176.88,176.8,3.29]
[1753879030192,3.06,176.87,176.85,3.29]
[1753879030394,4.61683963,176.9,176.87,3.29]
[1753879030694,4.61683963,176.9,176.81,4.61683963]
[1753879030895,3.06,176.91,176.83,4.61683963]
[1753879031094,3.06,176.91,176.84,3.29]
[1753879031289,3.06,176.9,176.83,3.29]
[1753879031495,3.06,176.9,176.77,15.93143963]
[1753879031496,3.06,176.93,176.86,4.61683963]
[1753879031695,384.59683963,176.96,176.86,4.61683963]
[1753879031696,5.6519,176.94,176.92,3.29]
[1753879031897,4.71308821,176.99,176.86,4.61683963]
[1753879032104,3.06,176.94,176.91,3.29]
[1753879032402,3.06,176.95,176.91,3.29]
[1753879032600,3.06,176.94,176.91,3.29]
[1753879032803,8.7122,176.94,176.91,3.29]
[1753879033400,4.61683963,176.96,176.86,4.61683963]
[1753879033699,7.67683963,176.97,176.88,4.61683963]
[1753879034005,3.06,176.96,176.93,3.29]
[1753879034398,8.7114,176.96,176.93,3.29]
[1753879034593,4.61683963,176.99,176.89,3.29]
[1753879034793,4.61683963,176.99,176.91,3.29]
[1753879034794,4.52164443,176.98,176.91,3.29]
[1753879034994,3.06,177.0,176.92,4.61683963]
[1753879035296,5.6482,177.06,176.98,3.29]
[1753879035600,11.61072262,177.05,177.02,5.6491]
[1753879035904,125.34960128,177.08,177.03,3.29]
[1753879036104,11.61147678,177.07,177.03,3.29]
[1753879036298,4.52495436,177.06,177.04,3.29]
[1753879036499,3.06,177.13,177.04,3.29]
[1753879036800,11.6037007,177.12,177.04,3.29]
[1753879037003,11.6037007,177.11,177.06,3.29]
[1753879037207,11.6037007,177.1,177.06,3.29]
[1753879037503,5.6461,177.13,177.06,3.29]
[1753879037706,7.67683963,177.15,177.06,3.29]
[1753879037898,7.67683963,177.15,177.09,3.29]
[1753879038299,3.06,177.14,177.09,3.29]
[1753879038506,5.6461,177.13,177.06,3.29]
[1753879038805,11.59424833,177.12,177.06,3.29]
[1753879039103,11.59424833,177.11,177.1,3.29]
[1753879039308,7.67955652,177.11,177.1,3.29]
[1753879039700,3.06,177.13,177.1,3.29]
[1753879039902,3.06,177.15,177.08,3.29]
[1753879040303,7.67683963,177.17,177.08,3.29]
[1753879040705,14.63202463,177.16,177.08,3.29]
[1753879040908,11.57202463,177.15,177.08,3.29]
[1753879041106,11.57202463,177.14,177.08,3.29]
[1753879041312,3.06,177.18,177.1,3.29]
[1753879042611,3.06,177.18,177.11,3.29]
[1753879043110,3.06,177.15,177.12,3.29]
[1753879043310,5.6455,177.14,177.12,3.29]
[1753879043603,3.06,177.15,177.12,3.29]
[1753879043808,3.06,177.16,177.08,3.29]
[1753879044010,3.06,177.14,177.08,3.29]
[1753879044305,5.6464,177.12,177.08,3.29]
[1753879044505,7.67683963,177.17,177.08,3.29]
[1753879044705,3.06,177.16,177.08,3.29]
[1753879045508,5.6455,177.14,177.09,5.6469]
[1753879045710,3.06,177.14,177.07,4.61683963]
[1753879045907,3.06,177.14,177.08,3.29]
[1753879046110,8.7056,177.14,177.1,3.29]
[1753879046306,3.06,177.16,177.08,3.29]
[1753879047313,3.06,177.16,177.07,4.61683963]
[1753879047513,3.06,177.16,177.1,3.26]
[1753879047809,4.61683963,177.19,177.1,3.26]
[1753879048008,3.32,177.18,177.1,3.26]
[1753879048407,3.32,177.18,177.09,4.61683963]
[1753879048712,3.32,177.18,177.1,3.26]
[1753879048916,5.6452,177.15,177.11,5.6464]
[1753879049117,3.32,177.18,177.12,3.26]
[1753879049911,5.6449,177.17,177.12,8.9061]
[1753879050109,5.6449,177.17,177.1,3.26]
[1753879051013,5.645,177.16,177.11,3.26]
[1753879051210,7.93683963,177.19,177.1,4.61683963]
[1753879051412,3.32,177.18,177.15,3.26]
[1753879051809,3.32,177.18,177.11,3.26]
[1753879052407,4.61683963,177.21,177.11,3.26]
[1753879052605,4.61683963,177.21,177.11,7.87683963]
[1753879052807,4.61683963,177.19,177.12,3.26]
[1753879053012,3.32,177.18,177.12,3.26]
[1753879054217,5.6451,177.16,177.12,5.6459]
[1753879054411,3.32,177.17,177.15,3.26]
[1753879054718,8.9644,177.18,177.16,3.26]
[1753879055111,3.32,177.18,177.16,3.26]
[1753879055711,3.32,177.2,177.13,4.61683963]
[1753879055911,3.32,177.2,177.14,3.26]
[1753879056516,4.61683963,177.2,177.14,3.26]
[1753879056720,3.32,177.17,177.12,3.26]
[1753879056906,3.32,177.15,177.05,4.61683963]
[1753879057220,3.32,177.11,177.06,3.26]
[1753879057422,4.61683963,177.16,177.06,3.26]
[1753879057716,3.32,177.17,177.09,4.61683963]
[1753879057914,3.32,177.17,177.1,3.26]
[1753879058118,4.61683963,177.2,177.09,4.61683963]
[1753879058310,4.61683963,177.2,177.15,3.26]
[1753879058517,5.6447,177.17,177.15,3.26]
[1753879058813,5.6447,177.17,177.11,4.61683963]
[1753879059010,5.6465,177.11,177.1,3.26]
[1753879059211,5.6465,177.11,176.96,11.3025]
[1753879059212,3.32,177.11,177.06,3.26]
[1753879059412,3.32,177.11,177.04,3.26]
[1753879059717,5.6474,177.09,177.05,5.6483]
[1753879059916,3.32,177.11,177.01,7.87683963]
[1753879060117,3.32,177.09,177.03,3.26]
[1753879060318,5.6477,177.08,177.04,5.6485]
[1753879060520,7.93683963,177.1,177.03,3.26]
[1753879060916,5.6472,177.09,177.07,3.26]
[1753879061112,3.32,177.09,177.03,3.26]
[1753879061509,8.9679,177.07,177.04,3.26]
[1753879061711,8.9679,177.07,177.03,5.6488]
[1753879061913,8.9679,177.07,176.99,111.87683963]
[1753879061914,8.9679,177.07,177.05,3.26]
[1753879062416,4.61683963,177.08,177.02,3.26]
[1753879062614,3.32,177.07,177.02,3.26]
[1753879062812,3.32,177.05,177.0,3.26]
[1753879063009,4.61683963,177.06,176.99,3.26]
[1753879063410,5.6486,177.05,176.99,3.26]
[1753879063821,4.61683963,177.06,176.99,3.26]
[1753879064120,5.6489,177.04,177.02,3.26]
[1753879064325,4.61683963,177.08,176.99,4.61683963]
[1753879064516,4.61683963,177.08,177.0,3.26]
[1753879064711,3.32,177.08,177.03,3.26]
[1753879064922,3.32,177.08,177.0,3.26]
[1753879065120,5.6477,177.08,177.04,5.6485]
[1753879065626,5.6474,177.08,177.06,3.26]
[1753879066123,7.93683963,177.11,177.02,3.26]
[1753879066322,4.61683963,177.09,177.02,3.26]
[1753879066532,3.32,177.08,177.02,3.26]
[1753879066817,3.32,177.08,177.02,8.9091]
[1753879067025,3.32,177.08,177.02,3.26]
[1753879067226,5.6478,177.07,177.02,3.26]
[1753879067420,5.6478,177.07,177.03,5.6487]
[1753879067618,3.32,177.08,177.03,5.6487]
[1753879067828,3.32,177.08,177.0,3.26]
[1753879068030,3.32,177.08,177.01,3.26]
[1753879068521,3.32,177.08,177.03,8.9088]
[1753879068728,3.32,177.07,176.99,3.26]
[1753879068919,5.6478,177.07,177.01,3.26]
[1753879069121,3.32,177.1,177.05,3.26]
[1753879069317,4.61683963,177.11,177.05,3.26]
[1753879069623,107.28,177.14,177.05,3.26]
[1753879069624,4.61683963,177.13,177.07,5.6476]
[1753879069827,3.32,177.12,177.08,3.26]
[1753879070026,8.9668,177.11,177.08,3.26]
[1753879070225,3.32,177.11,177.08,3.26]
[1753879070725,4.61683963,177.13,177.09,3.26]
[1753879070921,3.32,177.12,177.1,3.26]
[1753879071121,3.32,177.12,177.04,4.61683963]
[1753879071320,3.32,177.12,177.02,4.61683963]
[1753879071521,3.32,177.12,177.06,3.26]
[1753879071930,3.32,177.12,177.04,4.61683963]
[1753879072125,3.32,177.12,177.05,3.26]
[1753879072327,3.32,177.14,177.07,3.26]
[1753879072530,5.6459,177.13,177.11,3.26]
[1753879073232,3.32,177.16,177.07,3.26]
[1753879073424,4.15848489,177.15,177.07,3.26]
[1753879073625,3.32,177.16,177.07,3.26]
[1753879073821,4.15873082,177.15,177.07,3.26]
[1753879074125,3.32,177.16,177.07,3.26]
[1753879074323,4.15813808,177.15,177.07,3.26]
[1753879074636,3.32,177.14,177.07,3.26]
[1753879075131,3.32,177.17,177.09,3.26]
[1753879075334,4.1686259,177.16,177.09,3.26]
[1753879075528,9.8140259,177.15,177.09,3.26]
[1753879075732,3.32,177.17,177.09,3.26]
[1753879075923,4.1686259,177.16,177.09,3.26]
[1753879076132,4.17328223,177.15,177.11,3.26]
[1753879076330,3.32,177.17,177.11,3.26]
[1753879076528,7.49328223,177.16,177.11,3.26]
[1753879076729,9.81848223,177.15,177.12,5.6461]
[1753879076925,3.32,177.18,177.11,3.26]
[1753879077131,3.0,177.16,177.11,3.26]
[1753879077327,8.6458,177.14,177.11,8.9065]
[1753879077527,8.6458,177.14,177.12,3.14]
[1753879077729,5.6462,177.12,177.09,8.787]
[1753879077928,9.26722087,177.17,177.1,3.14]
[1753879078128,8.82689542,177.16,177.1,3.14]
[1753879078324,3.0,177.12,177.1,8.7867]